Cogmind - Beta 15 @@@ ROGUE MODE // 2025.10.06 @ 20:48:59 Player: DietSnapple Result: Destroyed by D-53 Grenadier with Mini Grenade Launcher Performance ------------- Evolutions (0) 0 Regions Visited (2) 400 Robots Destroyed (21) 105 Value Destroyed (627) 627 Prototype IDs (0) 0 Alien Tech Used (0) 0 Bonus (0) 0 TOTAL SCORE: 1132 Bonus ------- None Cogmind --------- Core Integrity 0/250 Matter 300/300 Energy 100/100 System Corruption 0% Temperature Cool (0) Movement Core (100) Ox1 Location -10/Mines Parts ------- > --- POWER (1) -------- (None) > --- PROPULSION (2) --- (None) > --- UTILITY (2) ------ Small Storage Unit > --- WEAPON (2) ------- Small Laser > --- INVENTORY (8) ---- ECM Suite Datajack Mining Laser Peak State ------------ > --- POWER ------------ Ion Engine > --- PROPULSION ------- Light Treads Light Treads > --- UTILITY ---------- Small Storage Unit Sensor Array > --- WEAPON ----------- Assault Rifle Light Assault Rifle > --- INVENTORY -------- Ion Engine Wheel Compact Wheel [Rating: 7] Favorites ----------- Power Ion Engine Engine Ion Engine Power Core Light Nuclear Core Propulsion Light Treads Treads Light Treads Wheel Compact Wheel Utility Small Storage Unit Device Sensor Array Storage Small Storage Unit Weapon Light Assault Rifle Energy Gun Small Laser Ballistic Gun Light Assault Rifle Launcher Grenade Launcher Build | -11 -10 -10 ------- Run | Yrd Mat Min Slots Evolved . | . . . Power . | . . . Propulsion . | . . . Utility . | . . . Weapon . | . . . Parts Attached 13 | 6 5 2 Power 3 | 1 1 1 Engine 2 | 1 1 . Core 1 | . . 1 Reactor . | . . . Propulsion 4 | 2 2 . Treads 2 | 2 . . Leg . | . . . Wheel 2 | . 2 . Hover . | . . . Flight . | . . . Utility 2 | 1 1 . Device 1 | . 1 . Storage 1 | 1 . . Processor . | . . . Hackware . | . . . Protection . | . . . Artifact . | . . . Weapon 4 | 2 1 1 Energy Gun 1 | . . 1 Energy Cannon . | . . . Ballistic Gun 2 | 2 . . Ballistic Cannon . | . . . Launcher 1 | . 1 . Special Weapon . | . . . Impact Weapon . | . . . Slashing Weapon . | . . . Piercing Weapon . | . . . Special Melee Weapon . | . . . Unidentified Prototypes . | . . . Parts Lost 9 | . 1 8 Power 2 | . . 2 Propulsion 3 | . 1 2 Utility 1 | . . 1 Weapon 3 | . . 3 Highest Loss Streak 5 | . 1 5 To Critical Strikes . | . . . Average Backups 4 | 2 5 3 Power . | . . . Propulsion 1 | 1 1 . Utility . | . . 1 Weapon 1 | . 1 1 Tool/Special . | . . . Unused Backups 3 | . . 3 Power . | . . . Propulsion . | . . . Utility 1 | . . 1 Weapon 1 | . . 1 Tool/Special 1 | . . 1 Average Slot Usage (%) 86 | . 94 71 Engine 9 | . 14 1 Core 4 | . . 11 Treads 12 | . 19 . Wheel 8 | . 4 15 Device 13 | . 13 14 Storage 14 | . 14 14 Energy Gun 4 | . . 13 Ballistic Gun 17 | . 26 . Peak Build Rating 7 | 6 7 7 Average Rating 6 | 4 6 6 On Entrance 4 | . 6 7 Naked Turns . | . . . Heaviest Build 14 | 13 14 14 Greatest Support 40 | 40 40 26 Greatest Overweight (x) 1 | 1 . . Average Overweight (x) . | . . . Largest Inventory Capacity 8 | 8 8 8 Average Capacity 7 | 7 8 8 Most Carried 8 | 4 8 6 Average Carried 4 | 2 5 3 Final Capacity 8 | 8 8 8 Final Carried 6 | 3 6 3 Class Distribution -------------------- 100% | Mutant Dominant Class ---------------- Mutant | -10/Materials Mutant | -10/Mines Resources | -11 -10 -10 ----------- Run | Yrd Mat Min Matter Collected 630 | 243 292 95 Remotely . | . . . Salvage Created 669 | . 610 59 Parts 41 | . 39 2 Haulers Intercepted . | . . . Recyclers Shooed . | . . . Parts Field Recycled . | . . . Retrieved Matter . | . . . Parts Self-Destructed . | . . . Prevented . | . . . Kills | -11 -10 -10 ------- Run | Yrd Mat Min Combat Hostiles Destroyed 18 | . 16 2 Guns 17 | . 16 1 AOE 1 | . . 1 Classes Destroyed 4 | . 4 . Operator 1 | . 1 . Watcher 2 | . 2 . Swarmer 3 | . 3 . Grunt 15 | . 13 2 Best Kill Streak 4 | . 4 1 Combat Bots Only 4 | . 4 1 Max Kills in Single Turn 1 | . 1 1 Gunslinging . | . . . Exploded 1 | . . 1 Melee . | . . . Uniques/NPCs Destroyed . | . . . Combat | -11 -10 -10 -------- Run | Yrd Mat Min Hostile Shots Fired 106 | . 72 34 Missed 23 | . 17 6 Hits 83 | . 55 28 Projectile 83 | . 55 28 AOE 3 | . . 3 Critical Strikes 2 | . 2 . Damage Taken 1109 | . 630 479 Core 266 | . 142 124 Absorbed by Shields . | . . . Core Remaining (%) 100 | 100 . . Volleys Fired 70 | . 49 21 Largest 2 | . 2 2 Hottest 40 | . 40 40 Shots Fired 119 | . 97 22 Gun 110 | . 96 14 Cannon . | . . . Launcher 9 | . 1 8 Special . | . . . Kinetic 100 | . 96 4 Thermal 10 | . . 10 Explosive 9 | . 1 8 Electromagnetic . | . . . Robot Hit Streak 15 | . 15 4 Robot Miss Streak 3 | . 3 1 Penetration Max . | . . . Secondary Targets 2 | . 2 . Max Gunslinging Chain 1 | . 1 . Shots Hit Robots 79 | . 69 10 Core Hits 40 | . 35 5 Critical Kills . | . . . Critical Parts Destroyed . | . . . Critical Strikes . | . . . Melee Attacks . | . . . Impact . | . . . Slashing . | . . . Piercing . | . . . Sneak Attacks . | . . . Combat Hostiles . | . . . Follow-up Attacks . | . . . Damage Inflicted 1091 | . 871 220 Guns 861 | . 765 96 Cannons . | . . . Explosions 227 | . 103 124 Melee . | . . . Ramming 3 | . 3 . Kinetic 785 | . 765 20 Thermal 76 | . . 76 Explosive 227 | . 103 124 Electromagnetic . | . . . Impact . | . . . Slashing . | . . . Piercing . | . . . Highest Corruption . | . . . Average Corruption . | . . . Corruption Purged . | . . . Corruption Blocked . | . . . Overload Shots . | . . . Overflow Damage 6 | . . 6 Projectiles . | . . . Explosions 6 | . . 6 Melee . | . . . Knockbacks . | . . . Impact . | . . . Kinetic . | . . . Secondary . | . . . Self-Inflicted Damage 47 | . . 47 Shots 2 | . . 2 Rammed 1 | . 1 . Targets Rammed 1 | . 1 . Kicked . | . . . Crushed . | . . . Highest Temperature 43 | . 34 43 Average Temperature 14 | . 10 18 Received Heat Transfer 510 | . 342 168 Siege Activations . | . . . Martial Activations . | . . . Shielding Activations . | . . . Robots Disrupted . | . . . Combat Hostiles . | . . . Robots Corrupted . | . . . Combat Hostiles . | . . . Parts Fried . | . . . Impact Corruptions . | . . . Robots Melted . | . . . Combat Hostiles . | . . . Parts Melted . | . . . Heat Transferred 175 | . . 175 Parts Sabotaged . | . . . Parts Stolen . | . . . Parts Stripped . | . . . Power Chain Reactions . | . . . Alert | -11 -10 -10 ------- Run | Yrd Mat Min Maximum Alert Level . | . . . Low Security (%) 100 | 100 100 100 Level 1 . | . . . Level 2 . | . . . Level 3 . | . . . Level 4 . | . . . Level 5 . | . . . High Security . | . . . Max Security . | . . . Peak Influence 133 | . 133 74 Initial 45 | . . 45 Average 35 | . 56 11 Influence Increases 493 | . 421 72 Destroy 0b10 Robot/C 360 | . 320 40 Destroy 0b10 Robot/NC 15 | . 15 . Destroy Leader 74 | . 64 10 Successful Hack 18 | . 18 . Destroy Structure 26 | . 4 22 Influence Decreases 493 | . 305 188 Entered New Map 71 | . . 71 Time Decay 362 | . 295 67 Lost Part 60 | . 10 50 Squads Dispatched 3 | . 3 . Investigation 2 | . 2 . Extermination . | . . . Reinforcement 1 | . 1 . Assault . | . . . Garrison . | . . . Intercept . | . . . Searches Triggered . | . . . Construction Impeded . | . . . Haulers Reinforced . | . . . Active Scanning Responses . | . . . Cargo Convoy Interrupts . | . . . Stealth | -11 -10 -10 --------- Run | Yrd Mat Min Distress Signals 2 | . 2 . Communications Jammed . | . . . Distress Signals . | . . . Times Spotted 27 | . 23 4 Peak Tracking Total 5 | . 5 2 Tactical Retreats . | . . . Traps | -11 -10 -10 ------- Run | Yrd Mat Min Traps Triggered 1 | . 1 . Indirectly . | . . . Trap Hack Attempts . | . . . Triggered . | . . . Disarmed 12 | . 12 . Reprogrammed . | . . . Reused . | . . . Traps Extracted . | . . . Installed . | . . . Triggered . | . . . Machines | -11 -10 -10 ---------- Run | Yrd Mat Min Machines Disabled . | . . . Max in Single Turn . | . . . Machines Repaired . | . . . Machines Dismantled . | . . . Machines Sabotaged . | . . . Overloaded Fab Kills . | . . . Hacking | -11 -10 -10 --------- Run | Yrd Mat Min Machines Accessed 3 | . 3 . Terminals 3 | . 3 . Fabricators . | . . . Repair Stations . | . . . Recycling Units . | . . . Scanalyzers . | . . . Garrison Access . | . . . Total Hacks 11 | . 11 . Successful 7 | . 7 . Failed 4 | . 4 . Catastrophic 1 | . 1 . Database Lockouts . | . . . Manual 11 | . 11 . Terminals 11 | . 11 . Fabricators . | . . . Repair Stations . | . . . Recycling Units . | . . . Scanalyzers . | . . . Garrison Access . | . . . Terminal Hacks 5 | . 5 . Branch Access Points 1 | . 1 . Locate Traps 1 | . 1 . Disarm Traps 3 | . 3 . Fabricator Hacks . | . . . Repair Station Hacks . | . . . Recycling Unit Hacks . | . . . Scanalyzer . | . . . Garrison Access Hacks . | . . . Unauthorized Hacks 2 | . 2 . Terminals 2 | . 2 . Botnet 1 | . 1 . Operators 1 | . 1 . Fabricators . | . . . Repair Stations . | . . . Recycling Units . | . . . Scanalyzers . | . . . Garrison Access . | . . . Data Cores Recovered . | . . . Used . | . . . Hacking Detections 2 | . 2 . Full Trace Events 2 | . 2 . Feedback Events . | . . . Feedback Blocked . | . . . Robot Schematics Acquired . | . . . Robots Built . | . . . Authchips . | . . . Time . | . . . Total Robot Build Rating . | . . . Part Schematics Acquired . | . . . Parts Built . | . . . Authchips . | . . . Time . | . . . Total Part Build Rating . | . . . Parts Repaired . | . . . Time . | . . . Parts Recycled . | . . . Recycled Matter . | . . . Retrieved Matter . | . . . Retrieved Components . | . . . Parts Scanalyzed . | . . . Part Schematics Acquired . | . . . Parts Damaged . | . . . Bothacking | -11 -10 -10 ------------ Run | Yrd Mat Min Used RIF Installer . | . . . Robots Hacked . | . . . Non-combat . | . . . Combat . | . . . Robot Hacks Applied . | . . . Relay Couplers Released . | . . . Fabnet Peak Effective % . | . . . Robots Rewired . | . . . Allies Hacked . | . . . Hacks Repelled . | . . . Allies | -11 -10 -10 -------- Run | Yrd Mat Min Total Allies . | . . . Largest Group . | . . . Highest-Rated Group . | . . . Highest-Rated Ally . | . . . Total Orders . | . . . Ally Attacks . | . . . Total Damage . | . . . Kills . | . . . Allies Corrupted . | . . . Allies Melted . | . . . Intel | -11 -10 -10 ------- Run | Yrd Mat Min Active Infowar (turns) 1113 | . 705 408 Sensors 1113 | . 705 408 Robot Analysis Total . | . . . Derelict Logs Recovered 2 | . . 2 Drone Launches . | . . . Drone Recoveries . | . . . Exploration | -11 -10 -10 ------------- Run | Yrd Mat Min Turns Passed 1270 | 140 721 409 Spaces Moved 838 | 85 389 364 Core 10 | 10 . . Treads 366 | 75 291 . Legs . | . . . Wheels 462 | . 98 364 Hover . | . . . Flight . | . . . Fastest Speed 50 | 50 90 90 Average Speed 124 | 150 142 99 Slowest Speed 160 | 160 160 100 Overloaded Moves . | . . . Propulsion Burnouts . | . . . Robots Hopped . | . . . Potential Cave-ins . | . . . Cave-ins Triggered . | . . . Exploration Rate (%) 44 | 5 62 67 Regions Visited 2 Branch Regions 1 Pre-discovered Areas 1 | . . 1 Known Exits Taken 1 | . 1 . Unknown Exits Taken 1 | 1 . . Scrap Searched 1 | . . 1 Spaces Dug . | . . . Terrain Destroyed 42 | . 4 38 Melee . | . . . Projectile . | . . . AOE 42 | . 4 38 Terrain Rammed . | . . . Walls Destroyed . | . . . Machines Disabled . | . . . Actions | -11 -10 -10 --------- Run | Yrd Mat Min Total 951 | 95 468 388 Wait 11 | . 11 . Move 836 | 84 388 364 Hop . | . . . Pick Up 11 | 5 6 . Fast Attach 5 | 4 1 . Attach 9 | 2 4 3 Detach 3 | . 3 . Swap 3 | . 3 . Drop 2 | . 2 . Fire 70 | . 49 21 Melee . | . . . Ram . | . . . Kick . | . . . Crush 1 | . 1 . Escape Stasis . | . . . Rewire . | . . . Trap . | . . . Miscellaneous . | . . . Route ------- -11/Scrapyard -10/Materials (discovered 3 exits: [*Mat] / *Min x2) -10/Mines (discovered 1 exit: [*Mat]) History --------- Turn | Location | Event 8 | -11/Scrapyard | Discovered new exit (range 16) 141 | -11/Scrapyard | Entered Materials 304 | -10/Materials | Build established: Mutant 653 | -10/Materials | Discovered new exit (range 16) 685 | -10/Materials | Core integrity fell below 50% 831 | -10/Materials | Identified exit to Mines 862 | -10/Materials | Entered Mines 885 | -10/Mines | Core integrity fell below 20% 939 | -10/Mines | Lost 5 parts (1p1n3w) 1038 | -10/Mines | Learned location of Storage (-8) 1131 | -10/Mines | Discovered new exit (range 5) 1251 | -10/Mines | Assembled infested the area 1271 | -10/Mines | Destroyed by D-53 Grenadier with Mini Grenade Launcher Last Messages --------------- 00995_ Found 42 Matter. 00995_ Found 38 Matter. 00996_ Acquired 38 matter. 00997_ Acquired 41 matter. 01019_ K-01 Serf collects debris. 01038_ Acquired derelict log, extracted data. World map updated: -8/Storage. 01076_ K-01 Serf collects debris. 01131_ EXIT=FOUND 01150_ Acquired derelict log, extracted data. Data stored: Storage entrances (x1). 01251_ ALERT: Infestation in the mines, dispatching Demolisher response squad. 01269_ C-30 ARC bursts open, deploying its payload. 01269_ D-53 Grenadier unfolds itself. 01269_ Lgt. Nuclear Core destroyed. 01270_ Sensor Array destroyed. 01270_ K-01 Serf collects debris. 01271_ The unstable cave ceiling collapses. 01271_ Com. Wheel destroyed. Map ----- +----------------------------------------------------+ | ####?????????????##########??????????????????????? | | # ##????????##### ######??????????###????? | | #???####?# ##????????# ##???? | | #??## ### ####???## #???? | | # ##?# ## #???# #????? | | # #?# ## ####### #???# #?????? | | #?## ## ###???### ### #??## ##?????? | | #### ##????## #?# #### #??????? | | ## ##????# #### #??????? | | #???## ##?# < #??????? | | #??##t ##?# ##??????? | | ##??# #?## ##???????? | | ##???# #??## #????????? | | ## ##????# ###### #????????? | | ## ###### ##?????# ## #????????? | | ######????# ##?????## ### ! ##???????? | | #?????????# #??????# #?# !! ##??????? | | #?????????# #??????# %##?# !! #####??? | | #?????????## #??????## dk#??# !! ###? | | #######????####???????## d#??# ## | | #????????????????# #??# ####### # | | ###### #????????????????# #??# ##?????## # | | ????## ##???????????????# #### #???????####### | | #??## ##????????????### ### ##????????????? | | #### #????????????# #?# #????????????? | | ##??????????## @ #?## #????????????? | | ##?????????# # #??#####????????????? | | ###### ##????????# #???????????????????? | | #????## ##???????# #???????????????????? | | #?????# ##??????## #???????????????????? | | #?????# """ #???????### ######???????????????? | | #?????# """ #?????????# #???????????????? | | #???? """ #?????????######## #???????????????? | | #?? ##??????????????????????????????????? | | ?# #### ###???????????????????????????????????? | | ?# ????#####?????????????????????????????????????? | | ?#??#????????????????????????????????????????????? | | ??? #????????????????????????????????????????????? | | ??? #????????????????????????????????????????????? | | ?? #????????????????????????????????????????????? | | ## #????????????????????????????????????????????? | | ##???????????????????????????????????????????? | | #???????????????????????????????????????????? | | ##??????????????????????????????????????????? | | ###????????????????????????????????????????? | | ##???????????????????????????????????????? | | "" #???????????????????????????????????????? | | "" #???????????????????????????????????????? | | "" #????????????????????????????????????????? | | #??????????????????????????????????????????? | +----------------------------------------------------+ Best States ------------- Heat Dissipation 25 Energy Generation 14 Energy Capacity 250 Matter Stores 300 Matter Capacity 300 Sight Range 16 Robot Scan Range 14 Terrain Scan Density 10 Evasion (%) 42 Recoil Reduction 2 Item Schematics ----------------- None Robot Schematics ------------------ None Fabricated ------------ Nothing Repaired ---------- Nothing Alien Tech Used ----------------- None Achievements -------------- None Challenges ------------ None Game ------ Seed DispersalVisualWeb Manual? 0 Play Time 00:08:46 Cumulative 16.1 hours Start 2025.10.06 @ 20:42:12 End 2025.10.06 @ 20:48:59 Sessions 1 Manual Loads 0 Difficulty Rogue Special Mode None Game No. 47 Rogue 40 Adventurer 7 Explorer 0 Win Type - Total 0 Types 0/0/0/0/0/0/0/0/0/0 Lore% 3 Gallery% 17 Achievement% 17 Wizard Run 0 Options --------- Layout 1 ASCII 0 Keyboard 1 Movement Vi Keybinds 0 Fullscreen 1 Font 24/Smallcaps Map View 76x35 Zoom Use 0% Tactical HUD 1 Map Filters NONE Filters NONE Steam 1 RUN: 8d5e2072-101e-4481-8caf-17fddcd0b9c3